Cogmind - Beta 14 @@@ ROGUE MODE // 2024.10.22 @ 00:15:13 Player: WazdakkaGutsmek Result: Destroyed by YI-UF0 with YI-UF0's Doublenader Performance ------------- Evolutions (0) 0 Regions Visited (2) 400 Robots Destroyed (14) 70 Value Destroyed (371) 371 Prototype IDs (0) 0 Alien Tech Used (0) 0 Bonus (0) 0 TOTAL SCORE: 841 Bonus ------- None Cogmind --------- Core Integrity 0/250 Matter 300/300 Energy 100/100 System Corruption 0% Temperature Cool (0) Movement Core (100) Ox1 Location -10/Mines Parts ------- > --- POWER (1) -------- (None) > --- PROPULSION (2) --- (None) > --- UTILITY (2) ------ Small Storage Unit > --- WEAPON (2) ------- (None) > --- INVENTORY (8) ---- Light Nuclear Core Improved Heat Sink Large Matter Pod (150) Experimental Sensor Array Peak State ------------ > --- POWER ------------ Light Nuclear Core > --- PROPULSION ------- Light Treads Light Treads > --- UTILITY ---------- Small Storage Unit Visual Processing Unit > --- WEAPON ----------- Small Laser Assault Rifle > --- INVENTORY -------- Light Ion Engine Light Ion Engine Light Nuclear Core Wheel Wheel Improved Heat Sink Experimental Sensor Array Light Assault Rifle [Rating: 12] Favorites ----------- Power Light Nuclear Core Engine Light Ion Engine Power Core Light Nuclear Core Propulsion Light Treads Treads Light Treads Leg Aluminum Leg Utility Small Storage Unit Device Improved Terrain Scanner Storage Small Storage Unit Processor Visual Processing Unit Weapon Small Laser Energy Gun Small Laser Ballistic Gun Assault Rifle Build | -11 -10 -10 ------- Run | Yrd Mat Min Slots Evolved . | . . . Power . | . . . Propulsion . | . . . Utility . | . . . Weapon . | . . . Parts Attached 8 | . 2 6 Power 3 | . 1 2 Engine . | . . . Core 3 | . 1 2 Reactor . | . . . Propulsion 2 | . . 2 Treads 2 | . . 2 Leg . | . . . Wheel . | . . . Hover . | . . . Flight . | . . . Utility 2 | . 1 1 Device 1 | . . 1 Storage . | . . . Processor 1 | . 1 . Hackware . | . . . Protection . | . . . Artifact . | . . . Weapon 1 | . . 1 Energy Gun . | . . . Energy Cannon . | . . . Ballistic Gun 1 | . . 1 Ballistic Cannon . | . . . Launcher . | . . . Special Weapon . | . . . Impact Weapon . | . . . Slashing Weapon . | . . . Piercing Weapon . | . . . Special Melee Weapon . | . . . Unidentified Prototypes . | . . . Parts Lost 7 | . . 7 Power 1 | . . 1 Propulsion 2 | . . 2 Utility 1 | . . 1 Weapon 3 | . . 3 Highest Loss Streak 7 | . . 7 To Critical Strikes . | . . . Average Slot Usage (%) 99 | . 99 99 Engine 4 | . 12 . Core 9 | . 1 13 Treads 17 | . . 25 Leg 10 | . 28 2 Device 2 | . . 4 Storage 14 | . 14 14 Processor 11 | . 13 10 Energy Gun 13 | . 14 13 Ballistic Gun 13 | . 14 13 Peak Build Rating 12 | . 10 12 Average Rating 10 | . 7 11 On Entrance 7 | 6 6 10 Naked Turns . | . . . Heaviest Build 14 | 11 13 14 Greatest Support 40 | 20 20 40 Greatest Overweight (x) 1 | . . 1 Average Overweight (x) . | . . . Largest Inventory Capacity 8 | . 8 8 Average Capacity 8 | . 8 8 Most Carried 8 | . 7 8 Average Carried 6 | . 6 5 Final Capacity 8 | 8 8 8 Final Carried 7 | 6 7 4 Class Distribution -------------------- 100% | Mutant Dominant Class ---------------- Mutant | -10/Materials Mutant | -10/Mines Resources | -11 -10 -10 ----------- Run | Yrd Mat Min Matter Collected 427 | 200 79 148 Remotely . | . . . Salvage Created 450 | . 209 241 Parts 26 | . 14 12 Haulers Intercepted . | . . . Recyclers Shooed 1 | . 1 . Parts Field Recycled . | . . . Retrieved Matter . | . . . Parts Self-Destructed . | . . . Prevented . | . . . Kills | -11 -10 -10 ------- Run | Yrd Mat Min Combat Hostiles Destroyed 11 | . 4 7 Guns 11 | . 4 7 Classes Destroyed 4 | . 3 1 Tunneler 2 | . 1 1 Watcher 1 | . 1 . Swarmer 3 | . . 3 Grunt 8 | . 4 4 Best Kill Streak 3 | . 2 3 Combat Bots Only 3 | . 2 3 Max Kills in Single Turn 1 | . 1 1 Gunslinging . | . . . Exploded . | . . . Melee . | . . . Uniques/NPCs Destroyed . | . . . Combat | -11 -10 -10 -------- Run | Yrd Mat Min Hostile Shots Fired 65 | . 15 50 Missed 13 | . . 13 Damage Taken 1026 | . 177 849 Core 251 | . 22 229 Absorbed by Shields . | . . . Core Remaining (%) 100 | 100 . . Volleys Fired 58 | . 27 31 Largest 2 | . 2 2 Hottest 60 | . 60 60 Shots Fired 107 | . 54 53 Gun 107 | . 54 53 Cannon . | . . . Launcher . | . . . Special . | . . . Kinetic 58 | . 27 31 Thermal 49 | . 27 22 Explosive . | . . . Electromagnetic . | . . . Robot Hit Streak 8 | . 8 6 Robot Miss Streak 4 | . 4 2 Penetration Max . | . . . Secondary Targets . | . . . Shots Hit Robots 61 | . 26 35 Core Hits 27 | . 10 17 Critical Kills . | . . . Critical Parts Destroyed 1 | . 1 . Critical Strikes 1 | . 1 . Destroy 1 | . 1 . Melee Attacks . | . . . Impact . | . . . Slashing . | . . . Piercing . | . . . Sneak Attacks . | . . . Combat Hostiles . | . . . Follow-up Attacks . | . . . Damage Inflicted 775 | . 375 400 Guns 769 | . 375 394 Cannons . | . . . Explosions . | . . . Melee . | . . . Ramming 6 | . . 6 Kinetic 450 | . 223 227 Thermal 319 | . 152 167 Explosive . | . . . Electromagnetic . | . . . Impact . | . . . Slashing . | . . . Piercing . | . . . Highest Corruption . | . . . Average Corruption . | . . . Corruption Purged . | . . . Corruption Blocked . | . . . Overload Shots . | . . . Overflow Damage . | . . . Projectiles . | . . . Explosions . | . . . Melee . | . . . Knockbacks . | . . . Impact . | . . . Kinetic . | . . . Secondary . | . . . Self-Inflicted Damage . | . . . Shots . | . . . Rammed 1 | . . 1 Targets Rammed 1 | . . 1 Kicked . | . . . Crushed . | . . . Highest Temperature 108 | . 45 108 Average Temperature 29 | . 20 33 Received Heat Transfer 216 | . 102 114 Siege Activations . | . . . Robots Corrupted . | . . . Combat Hostiles . | . . . Parts Fried . | . . . Impact Corruptions . | . . . Robots Melted . | . . . Combat Hostiles . | . . . Parts Melted . | . . . Heat Transferred 725 | . 350 375 Parts Sabotaged . | . . . Parts Stolen . | . . . Parts Stripped . | . . . Power Chain Reactions . | . . . Alert | -11 -10 -10 ------- Run | Yrd Mat Min Peak Influence 195 | . 67 195 Initial 25 | . . 25 Average 40 | . 30 44 Maximum Alert Level . | . . . Low Security (%) 100 | . 100 100 Level 1 . | . . . Level 2 . | . . . Level 3 . | . . . Level 4 . | . . . Level 5 . | . . . High Security . | . . . Max Security . | . . . Squads Dispatched 1 | . 1 . Investigation 1 | . 1 . Extermination . | . . . Reinforcement . | . . . Assault . | . . . Garrison . | . . . Intercept . | . . . Searches Triggered . | . . . Construction Impeded . | . . . Haulers Reinforced . | . . . Active Scanning Responses . | . . . Cargo Convoy Interrupts . | . . . Stealth | -11 -10 -10 --------- Run | Yrd Mat Min Distress Signals . | . . . Communications Jammed . | . . . Distress Signals . | . . . Times Spotted 14 | . 6 8 Peak Tracking Total 3 | . 2 3 Tactical Retreats . | . . . Traps | -11 -10 -10 ------- Run | Yrd Mat Min Traps Triggered 1 | . 1 . Indirectly . | . . . Trap Hack Attempts . | . . . Triggered . | . . . Disarmed . | . . . Reprogrammed . | . . . Reused . | . . . Traps Extracted . | . . . Installed . | . . . Triggered . | . . . Machines | -11 -10 -10 ---------- Run | Yrd Mat Min Machines Disabled . | . . . Max in Single Turn . | . . . Machines Repaired . | . . . Machines Dismantled . | . . . Machines Sabotaged . | . . . Overloaded Fab Kills . | . . . Hacking | -11 -10 -10 --------- Run | Yrd Mat Min Machines Accessed . | . . . Terminals . | . . . Fabricators . | . . . Repair Stations . | . . . Recycling Units . | . . . Scanalyzers . | . . . Garrison Access . | . . . Total Hacks . | . . . Successful . | . . . Failed . | . . . Catastrophic . | . . . Database Lockouts . | . . . Manual . | . . . Terminals . | . . . Fabricators . | . . . Repair Stations . | . . . Recycling Units . | . . . Scanalyzers . | . . . Garrison Access . | . . . Terminal Hacks . | . . . Fabricator Hacks . | . . . Repair Station Hacks . | . . . Recycling Unit Hacks . | . . . Scanalyzer . | . . . Garrison Access Hacks . | . . . Unauthorized Hacks . | . . . Terminals . | . . . Fabricators . | . . . Repair Stations . | . . . Recycling Units . | . . . Scanalyzers . | . . . Garrison Access . | . . . Data Cores Recovered . | . . . Used . | . . . Hacking Detections . | . . . Full Trace Events . | . . . Feedback Events . | . . . Feedback Blocked . | . . . Robot Schematics Acquired . | . . . Robots Built . | . . . Authchips . | . . . Time . | . . . Total Robot Build Rating . | . . . Part Schematics Acquired . | . . . Parts Built . | . . . Authchips . | . . . Time . | . . . Total Part Build Rating . | . . . Parts Repaired . | . . . Time . | . . . Parts Recycled . | . . . Recycled Matter . | . . . Retrieved Matter . | . . . Retrieved Components . | . . . Parts Scanalyzed . | . . . Part Schematics Acquired . | . . . Parts Damaged . | . . . Bothacking | -11 -10 -10 ------------ Run | Yrd Mat Min Used RIF Installer . | . . . Robots Hacked . | . . . Non-combat . | . . . Combat . | . . . Robot Hacks Applied . | . . . Relay Couplers Released . | . . . Fabnet Peak Effective % . | . . . Robots Rewired . | . . . Allies Hacked . | . . . Hacks Repelled . | . . . Allies | -11 -10 -10 -------- Run | Yrd Mat Min Total Allies . | . . . Largest Group . | . . . Highest-Rated Group . | . . . Highest-Rated Ally . | . . . Total Orders . | . . . Ally Attacks . | . . . Total Damage . | . . . Kills . | . . . Allies Corrupted . | . . . Allies Melted . | . . . Intel | -11 -10 -10 ------- Run | Yrd Mat Min Robot Analysis Total . | . . . Derelict Logs Recovered 1 | . . 1 Drone Launches . | . . . Drone Recoveries . | . . . Exploration | -11 -10 -10 ------------- Run | Yrd Mat Min Turns Passed 1641 | . 519 1122 Spaces Moved 526 | 1 99 426 Core 3 | . . 3 Treads 370 | . . 370 Legs 153 | 1 99 53 Wheels . | . . . Hover . | . . . Flight . | . . . Fastest Speed 100 | 120 120 100 Average Speed 148 | 120 120 154 Slowest Speed 160 | 120 120 160 Overloaded Moves . | . . . Propulsion Burnouts . | . . . Robots Hopped . | . . . Cave-ins Triggered . | . . . Exploration Rate (%) 26 | 2 23 54 Regions Visited 2 Branch Regions 1 Pre-discovered Areas 1 | . . 1 Known Exits Taken . | . . . Unknown Exits Taken 2 | 1 1 . Scrap Searched . | . . . Spaces Dug . | . . . Terrain Destroyed . | . . . Melee . | . . . Projectile . | . . . AOE . | . . . Terrain Rammed . | . . . Walls Destroyed . | . . . Machines Disabled . | . . . Actions | -11 -10 -10 --------- Run | Yrd Mat Min Total 1283 | . 444 839 Wait 682 | . 317 365 Move 524 | . 98 426 Hop . | . . . Pick Up 3 | . . 3 Fast Attach 2 | . 1 1 Attach 3 | . . 3 Detach . | . . . Swap 3 | . 1 2 Drop 7 | . . 7 Fire 58 | . 27 31 Melee . | . . . Ram . | . . . Kick . | . . . Crush 1 | . . 1 Escape Stasis . | . . . Rewire . | . . . Trap . | . . . Miscellaneous . | . . . Route ------- -11/Scrapyard -10/Materials -10/Mines (discovered 2 exits: [*Mat x2]) History --------- Turn | Location | Event 1 | -11/Scrapyard | Discovered new exit (range 0) 1 | -11/Scrapyard | Entered Materials 302 | -10/Materials | Build established: Mutant 476 | -10/Materials | Discovered new exit (range 12) 520 | -10/Materials | Entered Mines 590 | -10/Mines | Found a damaged Exp. Sensor Array with a note attached 593 | -10/Mines | Found Prototype Device 594 | -10/Mines | Discovered new exit (range 16) 596 | -10/Mines | Learned location of Mines (-9) 899 | -10/Mines | Discovered new exit (range 11) 1628 | -10/Mines | Core integrity fell below 50% 1642 | -10/Mines | Destroyed by YI-UF0 with YI-UF0's Doublenader Last Messages --------------- 01326_ Acquired 10 matter. 01330_ K-01 Serf collects debris. 01483_ Slammed into T-07 Excavator. 01623_ YI-UF0 mumbles something. 01625_ Assault Rifle destroyed. 01625_ Sml. Laser destroyed. 01625_ YI-UF0: "BOOSH!" 01625_ K-01 Serf destroyed. 01627_ YI-UF0 mumbles something. 01631_ Lgt. Treads destroyed. 01632_ K-01 Serf collects debris. 01635_ YI-UF0 mumbles something. 01635_ The unstable cave ceiling collapses. 01635_ Lgt. Nuclear Core destroyed. 01636_ K-01 Serf collects debris. 01639_ Lgt. Treads destroyed. 01639_ Lgt. Assault Rifle destroyed. 01641_ YI-UF0 mumbles something. 01642_ The unstable cave ceiling collapses. 01642_ Imp. Terrain Scanner destroyed. Map ----- +----------------------------------------------------+ | ?????????????#????????????##????# #?# ##??#??### | | ?????????????????????? ????????## ### #????# # | | ????????????????????????????#?## ## #???# | | ??????????? ??? ?????????????## ##?#?? | | ?????????????????????????? ??# #???## # | | ?????????????????????????????# #??## #? | | ???????????????????????#?????## ##### #### #? | | ??????????????????????????????#####??# #? | | ???????????????????????????????????### % #?? | | ????????????????????????????????#### ###### ##?? | | ?????###??????????????????????????# ??## ##??? | | ????? #??????????????????????????# ### #???? | | ?????# #??????????????????????????# ##??? | | ?????# #?????????????????????##???## """ ##?? | | ?????# #????????????????#??????????## """ ##? | | ?????# #??????????????????????#?????## """ #? | | ?????# ###?###??????#???#?????????#??## #? | | ?????# ?? #???????????#?????#??????# ### #? | | #???## #???# #???????#?#?#####????????# #?## # | | ##### ##??# #???????????# # #####??### #??## ## | | #### ##????????### ##### #????###? | | ##### ???## # ## ##??????? | | #### = #???## ###????? | | #??# #### % # # ##???? | | ???# #???## ! ###?? | | ??# #????## =% @ ### #??? | | ?? #????## g ####?## #??? | | ?# #????# #???#?## ##??? | | ?## #???? k <= ##??????######???? | | ??## #????# ## #??????##????????? | | ???# #????# ##########????#???????????? | | ???## #????? # # #? ???????????????????#???? | | ????? ????????### #???????????#?????????????? | | ????? ??????????## #### ######????####???????? | | ????? ???????????# # #???## ##??????? | | ????? ???????????# # ##### #??????? | | ????? ???????????#?########### #??????? | | ????? ???????????????????????### ### #??????? | | ????? #?????????????????????????# #?# #??????? | | ?????#??????????????????????????# ##??????? | | ????????????????????????????????#### ##???????? | | ???????????????????????????????????# ##????????? | | ??????????????????????????????????# ##?????????? | | ??????????????????????????????????## #???????????? | | ???????????????????????????????????##????????????? | | ?????????????????????????????????????????????????? | | ?????????????????????????????????????????????????? | | ?????????????????????????????????????????????????? | | | | | +----------------------------------------------------+ Best States ------------- Heat Dissipation 25 Energy Generation 14 Energy Capacity 160 Matter Stores 300 Matter Capacity 300 Sight Range 18 Terrain Scan Range 16 Terrain Scan Density 10 Evasion (%) 55 Recoil Reduction 2 Item Schematics ----------------- None Robot Schematics ------------------ None Fabricated ------------ Nothing Alien Tech Used ----------------- None Achievements -------------- None Challenges ------------ None Game ------ Seed PoweredMicrowarpRouter Manual? 0 Play Time 00:12:41 Cumulative 58.9 hours Start 2024.10.22 @ 00:08:01 End 2024.10.22 @ 00:15:13 Sessions 1 Manual Loads 0 Difficulty Rogue Special Mode None Game No. 57 Rogue 39 Adventurer 16 Explorer 2 Win Type - Total 1 Types 1/0/0/0/0/0/0/0/0 Lore% 13 Gallery% 42 Achievement% 37 Wizard Run 0 Options --------- Layout 2 ASCII 0 Keyboard 0 Movement Mouse Keybinds 1 Fullscreen 2 Font 24/Terminus Map View 50x44 Zoom Use 0% Tactical HUD 1 Map Filters NONE Filters NONE Steam X RUN: 8e7e81be-2533-4b62-817a-4baf2f199c65